[Event "Live Chess"]
[Site "Chess.com"]
[Date "2023.09.16"]
[Round "-"]
[White "Gabriel0298"]
[Black "Fellipezin"]
[Result "1-0"]
[WhiteElo "1607"]
[BlackElo "1585"]
[TimeControl "900+5"]
[EndTime "16:39:26 PDT"]
[Termination "Gabriel0298 venceu por desistência"]

1. e4 {[%clk 0:15:03.7]} 1... e5 {[%clk 0:15:01.9]} 2. Nf3 {[%clk 0:15:08.2]}
2... Nc6 {[%clk 0:15:05]} 3. Bc4 {[%clk 0:15:12.6]} 3... Bc5 {[%clk 0:15:01.8]}
4. O-O {[%clk 0:15:16.6]} 4... Nf6 {[%clk 0:15:03.7]} 5. c3 {[%clk 0:15:20.6]}
5... d6 {[%clk 0:14:54.3]} 6. d4 {[%clk 0:15:24.9]} 6... exd4 {[%clk 0:14:42.5]}
7. cxd4 {[%clk 0:15:29.8]} 7... Bb6 {[%clk 0:14:44.5]} 8. d5 {[%clk 0:15:33.9]}
8... Ne5 {[%clk 0:14:47.6]} 9. Nxe5 {[%clk 0:15:37.7]} 9... dxe5 {[%clk
0:14:51.6]} 10. h3 {[%clk 0:15:38.7]} 10... O-O {[%clk 0:14:55.2]} 11. Nc3
{[%clk 0:15:41.1]} 11... h6 {[%clk 0:14:57.8]} 12. Qf3 {[%clk 0:15:44]} 12...
Kh7 {[%clk 0:14:50.3]} 13. Be3 {[%clk 0:15:28.5]} 13... Qe7 {[%clk 0:13:15]} 14.
Bxb6 {[%clk 0:15:23.3]} 14... axb6 {[%clk 0:13:19.9]} 15. Qe3 {[%clk 0:15:16.7]}
15... Bd7 {[%clk 0:12:47.1]} 16. f4 {[%clk 0:15:20.7]} 16... Nh5 {[%clk
0:11:11.3]} 17. fxe5 {[%clk 0:14:59.1]} 17... Qxe5 {[%clk 0:11:13.7]} 18. Rf3
{[%clk 0:14:28.3]} 18... Rae8 {[%clk 0:10:54.5]} 19. Raf1 {[%clk 0:14:28.1]}
19... Nf6 {[%clk 0:10:45.5]} 20. Ne2 {[%clk 0:14:12.1]} 20... Qxe4 {[%clk
0:10:32.5]} 21. Bd3 {[%clk 0:14:15.5]} 21... Bb5 {[%clk 0:09:55.1]} 22. Bxe4+
{[%clk 0:14:17.8]} 22... Rxe4 {[%clk 0:09:58.1]} 23. Qb3 {[%clk 0:14:13.1]}
23... Bxe2 {[%clk 0:09:56.1]} 24. Qc2 {[%clk 0:14:14.5]} 24... Bxf3 {[%clk
0:09:49.5]} 25. Rxf3 {[%clk 0:14:17.1]} 25... Kg8 {[%clk 0:09:41.8]} 26. Rxf6
{[%clk 0:14:20.6]} 26... Re1+ {[%clk 0:09:45.3]} 27. Kf2 {[%clk 0:14:24.4]}
27... gxf6 {[%clk 0:09:38.9]} 28. Kxe1 {[%clk 0:14:27.8]} 1-0

[Event "Live Chess"]
[Site "Chess.com"]
[Date "2023.09.16"]
[Round "-"]
[White "Luisgustavo100"]
[Black "MNPedroh"]
[Result "0-1"]
[WhiteElo "944"]
[BlackElo "1862"]
[TimeControl "900+5"]
[EndTime "16:39:58 PDT"]
[Termination "MNPedroh venceu por xeque-mate"]

1. e4 {[%clk 0:15:01.9]} 1... e5 {[%clk 0:15:04.6]} 2. Nf3 {[%clk 0:15:05.1]}
2... Nc6 {[%clk 0:15:09.1]} 3. Bc4 {[%clk 0:15:07.7]} 3... Nf6 {[%clk
0:15:13.6]} 4. d3 {[%clk 0:15:11.2]} 4... Bc5 {[%clk 0:15:17.6]} 5. O-O {[%clk
0:15:14.2]} 5... d6 {[%clk 0:15:21.4]} 6. h3 {[%clk 0:15:12.1]} 6... h6 {[%clk
0:15:25.4]} 7. Nbd2 {[%clk 0:15:10]} 7... Be6 {[%clk 0:15:29.9]} 8. Bb3 {[%clk
0:15:09.8]} 8... O-O {[%clk 0:15:31.2]} 9. Re1 {[%clk 0:15:11.4]} 9... Qd7
{[%clk 0:15:25.4]} 10. Nf1 {[%clk 0:15:11.1]} 10... Nh7 {[%clk 0:15:15.4]} 11.
Ng3 {[%clk 0:15:06.1]} 11... a5 {[%clk 0:15:12.3]} 12. c3 {[%clk 0:14:27]} 12...
Bxh3 {[%clk 0:15:00.7]} 13. gxh3 {[%clk 0:14:27.8]} 13... Qxh3 {[%clk
0:15:05.6]} 14. d4 {[%clk 0:13:26.1]} 14... Bb6 {[%clk 0:15:09.7]} 15. Bd5
{[%clk 0:13:17.2]} 15... Nf6 {[%clk 0:14:59.6]} 16. Bxc6 {[%clk 0:13:05]} 16...
bxc6 {[%clk 0:15:04.5]} 17. dxe5 {[%clk 0:13:08.1]} 17... Qxg3+ {[%clk
0:15:07.5]} 18. Kf1 {[%clk 0:13:05.1]} 18... Qxf2# {[%clk 0:15:10.1]} 0-1

[Event "Live Chess"]
[Site "Chess.com"]
[Date "2023.09.16"]
[Round "-"]
[White "Ferazo"]
[Black "silvaaps"]
[Result "1-0"]
[WhiteElo "1404"]
[BlackElo "783"]
[TimeControl "900+5"]
[EndTime "16:40:10 PDT"]
[Termination "Ferazo venceu por desistência"]

1. c4 {[%clk 0:15:02.4]} 1... d5 {[%clk 0:14:57.4]} 2. cxd5 {[%clk 0:15:05.9]}
2... Qxd5 {[%clk 0:14:59.5]} 3. Nc3 {[%clk 0:15:10.4]} 3... Qe6 {[%clk
0:15:02.9]} 4. Nf3 {[%clk 0:15:10.2]} 4... Nc6 {[%clk 0:15:02.1]} 5. d4 {[%clk
0:15:07.1]} 5... Qd6 {[%clk 0:14:59.5]} 6. e4 {[%clk 0:15:00.9]} 6... e5 {[%clk
0:15:03.2]} 7. d5 {[%clk 0:14:40.6]} 7... Nce7 {[%clk 0:15:02.5]} 8. Bd2 {[%clk
0:14:28.9]} 8... Bg4 {[%clk 0:15:01.8]} 9. Be2 {[%clk 0:13:36.9]} 9... Bxf3
{[%clk 0:15:05.6]} 10. Bxf3 {[%clk 0:13:40.3]} 10... Ng6 {[%clk 0:15:07.7]} 11.
Rc1 {[%clk 0:13:23.9]} 11... Qb4 {[%clk 0:15:08.7]} 12. O-O {[%clk 0:12:29.5]}
12... Qxb2 {[%clk 0:15:09.5]} 13. Rb1 {[%clk 0:12:33.6]} 13... Qa3 {[%clk
0:15:09.7]} 14. Rxb7 {[%clk 0:12:19.8]} 14... O-O-O {[%clk 0:15:09.5]} 15. Qb1
{[%clk 0:12:13.8]} 15... Kd7 {[%clk 0:15:00.6]} 16. Nb5 {[%clk 0:12:10.9]} 16...
Qa6 {[%clk 0:14:51.1]} 17. Rxc7+ {[%clk 0:12:06.6]} 17... Ke8 {[%clk 0:14:37.1]}
18. Be2 {[%clk 0:11:51.9]} 18... Qb6 {[%clk 0:14:21]} 19. Rfc1 {[%clk
0:10:42.5]} 19... a6 {[%clk 0:14:13.5]} 20. R7c6 {[%clk 0:10:19.1]} 20... Qb7
{[%clk 0:14:05.8]} 21. Nd6+ {[%clk 0:10:21]} 1-0

[Event "Live Chess"]
[Site "Chess.com"]
[Date "2023.09.16"]
[Round "-"]
[White "Japaawz"]
[Black "Larissa1413"]
[Result "0-1"]
[WhiteElo "409"]
[BlackElo "1918"]
[TimeControl "900+5"]
[EndTime "16:41:05 PDT"]
[Termination "Larissa1413 venceu por xeque-mate"]

1. e4 {[%clk 0:14:57.9]} 1... e6 {[%clk 0:14:57]} 2. d3 {[%clk 0:15:02.8]} 2...
d5 {[%clk 0:15:00]} 3. d4 {[%clk 0:15:02.6]} 3... Nf6 {[%clk 0:15:02.9]} 4. Nc3
{[%clk 0:15:04.2]} 4... Bb4 {[%clk 0:15:04.7]} 5. a3 {[%clk 0:14:48.7]} 5...
Bxc3+ {[%clk 0:15:08]} 6. bxc3 {[%clk 0:14:49.8]} 6... Nxe4 {[%clk 0:15:11.2]}
7. Be3 {[%clk 0:14:44.8]} 7... c6 {[%clk 0:15:05.6]} 8. Nf3 {[%clk 0:14:47.4]}
8... Nd7 {[%clk 0:15:02]} 9. Rb1 {[%clk 0:14:51.1]} 9... Ndf6 {[%clk 0:15:05.1]}
10. Ng5 {[%clk 0:14:53.8]} 10... Nxc3 {[%clk 0:15:04.5]} 11. Qc1 {[%clk
0:14:50.7]} 11... Nxb1 {[%clk 0:15:05.3]} 12. Qxb1 {[%clk 0:14:53.3]} 12... h6
{[%clk 0:15:05.5]} 13. Nf3 {[%clk 0:14:41.5]} 13... Ne4 {[%clk 0:15:07]} 14. Qb3
{[%clk 0:14:26.9]} 14... Qa5+ {[%clk 0:15:06.1]} 15. Nd2 {[%clk 0:14:21.2]}
15... Nxd2 {[%clk 0:14:59.1]} 16. Bxd2 {[%clk 0:14:24.1]} 16... Qd8 {[%clk
0:15:00.9]} 17. Qg3 {[%clk 0:14:12.7]} 17... Qf6 {[%clk 0:15:00.4]} 18. c4
{[%clk 0:14:15.2]} 18... Qxd4 {[%clk 0:14:39.8]} 19. cxd5 {[%clk 0:14:01.6]}
19... Qe4+ {[%clk 0:14:38]} 20. Kd1 {[%clk 0:13:59.7]} 20... cxd5 {[%clk
0:14:37.7]} 21. Bc3 {[%clk 0:14:01.8]} 21... d4 {[%clk 0:14:36.2]} 22. Qxg7
{[%clk 0:13:58.9]} 22... dxc3 {[%clk 0:14:14.6]} 23. Qxh8+ {[%clk 0:14:01.8]}
23... Ke7 {[%clk 0:14:15.4]} 24. Qxc3 {[%clk 0:14:05.2]} 24... Bd7 {[%clk
0:14:14.1]} 25. h4 {[%clk 0:14:00.8]} 25... Ba4+ {[%clk 0:14:14.6]} 26. Kd2
{[%clk 0:13:46.2]} 26... Rd8+ {[%clk 0:14:16.3]} 27. Kc1 {[%clk 0:13:33.3]}
27... Rd1+ {[%clk 0:14:12.2]} 28. Kb2 {[%clk 0:13:31.7]} 28... Qb1# {[%clk
0:14:15.1]} 0-1

[Event "Live Chess"]
[Site "Chess.com"]
[Date "2023.09.16"]
[Round "-"]
[White "Tercette"]
[Black "Gabriel0298"]
[Result "0-1"]
[WhiteElo "157"]
[BlackElo "1607"]
[TimeControl "900+5"]
[EndTime "16:41:22 PDT"]
[Termination "Gabriel0298 venceu por xeque-mate"]

1. e4 {[%clk 0:15:02.8]} 1... e6 {[%clk 0:15:04.5]} 2. Qh5 {[%clk 0:15:00.3]}
2... Nf6 {[%clk 0:15:06.8]} 3. Qf3 {[%clk 0:15:02.8]} 3... d5 {[%clk 0:15:11.2]}
4. exd5 {[%clk 0:15:04.6]} 4... exd5 {[%clk 0:15:14.9]} 5. Ne2 {[%clk
0:15:04.7]} 5... Bd6 {[%clk 0:15:18.3]} 6. Nf4 {[%clk 0:15:08.2]} 6... O-O
{[%clk 0:15:18.6]} 7. Bd3 {[%clk 0:15:10.1]} 7... Re8+ {[%clk 0:15:22.5]} 8. Kf1
{[%clk 0:15:10.6]} 8... Bg4 {[%clk 0:15:24.5]} 9. Be2 {[%clk 0:15:07.5]} 9...
Bxf3 {[%clk 0:15:27.8]} 10. Bxf3 {[%clk 0:15:11.1]} 10... Bxf4 {[%clk
0:15:31.7]} 11. g3 {[%clk 0:15:13.8]} 11... Bg5 {[%clk 0:15:30.2]} 12. h4 {[%clk
0:15:15.5]} 12... Bh6 {[%clk 0:15:32.3]} 13. g4 {[%clk 0:15:14.9]} 13... Ne4
{[%clk 0:15:31.8]} 14. g5 {[%clk 0:15:18]} 14... Bxg5 {[%clk 0:15:31.4]} 15.
hxg5 {[%clk 0:15:20.1]} 15... Qxg5 {[%clk 0:15:36.3]} 16. Rg1 {[%clk 0:15:21.5]}
16... Qf4 {[%clk 0:15:38.8]} 17. Bh5 {[%clk 0:15:19]} 17... Qxf2# {[%clk
0:15:42.3]} 0-1

[Event "Live Chess"]
[Site "Chess.com"]
[Date "2023.09.16"]
[Round "-"]
[White "Capi-D-Vara"]
[Black "Miinero"]
[Result "0-1"]
[WhiteElo "1278"]
[BlackElo "1904"]
[TimeControl "900+5"]
[EndTime "16:42:42 PDT"]
[Termination "Miinero venceu por desistência"]

1. e4 {[%clk 0:15:03.5]} 1... e5 {[%clk 0:14:56.3]} 2. Nf3 {[%clk 0:15:07]} 2...
Nc6 {[%clk 0:14:58.4]} 3. Bc4 {[%clk 0:15:10.5]} 3... Nf6 {[%clk 0:15:00]} 4.
O-O {[%clk 0:15:09]} 4... Bc5 {[%clk 0:15:03.4]} 5. c3 {[%clk 0:15:09]} 5... d6
{[%clk 0:15:07.3]} 6. Ng5 {[%clk 0:14:43.2]} 6... O-O {[%clk 0:15:02.9]} 7. d4
{[%clk 0:14:43.9]} 7... exd4 {[%clk 0:15:06]} 8. cxd4 {[%clk 0:14:48.8]} 8...
Nxd4 {[%clk 0:15:10.1]} 9. Be3 {[%clk 0:14:40.7]} 9... Ne6 {[%clk 0:15:10.1]}
10. Bxc5 {[%clk 0:14:33.6]} 10... Nxg5 {[%clk 0:15:02.9]} 11. e5 {[%clk
0:13:49.3]} 11... dxc5 {[%clk 0:15:04.7]} 12. Qxd8 {[%clk 0:13:45.6]} 12... Rxd8
{[%clk 0:15:09.6]} 13. exf6 {[%clk 0:13:49.9]} 13... gxf6 {[%clk 0:15:14]} 14.
Nc3 {[%clk 0:13:53.1]} 14... Be6 {[%clk 0:15:17.4]} 15. Bb3 {[%clk 0:13:52.2]}
15... a6 {[%clk 0:15:19.8]} 16. Rfd1 {[%clk 0:13:54.4]} 16... Bxb3 {[%clk
0:15:21]} 17. axb3 {[%clk 0:13:56.9]} 17... Kf8 {[%clk 0:15:23.9]} 18. f3 {[%clk
0:13:43.8]} 18... c6 {[%clk 0:15:22.6]} 19. h4 {[%clk 0:12:52.9]} 19... Ne6
{[%clk 0:15:23.4]} 20. Ne4 {[%clk 0:12:56.5]} 20... Ke7 {[%clk 0:15:26]} 21. Kf2
{[%clk 0:13:01.1]} 21... Nd4 {[%clk 0:15:20.6]} 22. Nxc5 {[%clk 0:12:48.4]}
22... Rab8 {[%clk 0:15:08.9]} 23. Ke3 {[%clk 0:12:18.2]} 23... Nc2+ {[%clk
0:15:10]} 0-1

[Event "Live Chess"]
[Site "Chess.com"]
[Date "2023.09.16"]
[Round "-"]
[White "Sophowl"]
[Black "silvaaps"]
[Result "1-0"]
[WhiteElo "301"]
[BlackElo "768"]
[TimeControl "900+5"]
[EndTime "16:43:14 PDT"]
[Termination "Sophowl venceu por desistência"]

1. e4 {[%clk 0:15:00.1]} 1... d5 {[%clk 0:15:04.3]} 2. f3 {[%clk 0:14:56.1]}
2... dxe4 {[%clk 0:15:07]} 3. fxe4 {[%clk 0:14:57.6]} 3... e5 {[%clk 0:15:08.9]}
4. Nf3 {[%clk 0:14:59.6]} 4... Bc5 {[%clk 0:15:10.1]} 5. d4 {[%clk 0:14:54.1]}
5... exd4 {[%clk 0:15:12.6]} 6. c3 {[%clk 0:14:56.3]} 6... dxc3 {[%clk
0:15:15.5]} 7. bxc3 {[%clk 0:14:58.9]} 7... Qf6 {[%clk 0:15:18.7]} 8. Bb5+
{[%clk 0:14:57.7]} 8... Kf8 {[%clk 0:15:19.3]} 9. a4 {[%clk 0:14:54.1]} 9... Bg4
{[%clk 0:15:22.9]} 10. Qb3 {[%clk 0:14:42.4]} 10... Bxf3 {[%clk 0:15:23.6]} 11.
gxf3 {[%clk 0:14:44.3]} 11... Qxf3 {[%clk 0:15:27]} 12. Rf1 {[%clk 0:14:39.7]}
12... Qxe4+ {[%clk 0:15:22.1]} 13. Kd1 {[%clk 0:14:24.4]} 13... Qd4+ {[%clk
0:15:17.4]} 14. cxd4 {[%clk 0:14:16.9]} 1-0

[Event "Live Chess"]
[Site "Chess.com"]
[Date "2023.09.16"]
[Round "-"]
[White "samurai0718"]
[Black "CroNmo"]
[Result "0-1"]
[WhiteElo "1347"]
[BlackElo "1852"]
[TimeControl "900+5"]
[EndTime "16:43:50 PDT"]
[Termination "CroNmo venceu por desistência"]

1. e4 {[%clk 0:15:02]} 1... c5 {[%clk 0:15:04.2]} 2. Nf3 {[%clk 0:15:05.4]} 2...
e6 {[%clk 0:15:08.7]} 3. Nc3 {[%clk 0:15:05.8]} 3... Nc6 {[%clk 0:15:12.7]} 4.
d4 {[%clk 0:15:08.8]} 4... cxd4 {[%clk 0:15:16.8]} 5. Nxd4 {[%clk 0:15:13]} 5...
Bc5 {[%clk 0:15:21.3]} 6. Nxc6 {[%clk 0:15:12.1]} 6... bxc6 {[%clk 0:15:25.4]}
7. Bc4 {[%clk 0:15:13.9]} 7... Ne7 {[%clk 0:15:22.7]} 8. O-O {[%clk 0:15:17.5]}
8... O-O {[%clk 0:15:26.4]} 9. Ne2 {[%clk 0:15:15.3]} 9... d5 {[%clk 0:15:29.9]}
10. exd5 {[%clk 0:15:18.9]} 10... cxd5 {[%clk 0:15:34.8]} 11. Bd3 {[%clk
0:15:22.1]} 11... e5 {[%clk 0:15:27.7]} 12. Bb5 {[%clk 0:14:55.9]} 12... a6
{[%clk 0:15:31.4]} 13. Ba4 {[%clk 0:14:56.2]} 13... Bb7 {[%clk 0:15:34.4]} 14.
c3 {[%clk 0:14:56.4]} 14... Ng6 {[%clk 0:15:37.4]} 15. b4 {[%clk 0:14:59.8]}
15... Ba7 {[%clk 0:15:40.4]} 16. Ng3 {[%clk 0:14:56.7]} 16... Rc8 {[%clk
0:15:37.5]} 17. Bb2 {[%clk 0:14:55.5]} 17... d4 {[%clk 0:15:31.6]} 18. cxd4
{[%clk 0:14:58.2]} 18... exd4 {[%clk 0:15:26.8]} 19. Nf5 {[%clk 0:14:32.4]}
19... Qd5 {[%clk 0:15:27.7]} 20. Qg4 {[%clk 0:13:58.9]} 20... Bb8 {[%clk
0:14:52.2]} 21. h4 {[%clk 0:13:49.8]} 21... Qe4 {[%clk 0:14:44.7]} 22. Qxe4
{[%clk 0:13:46.4]} 22... Bxe4 {[%clk 0:14:49.6]} 23. Nxd4 {[%clk 0:13:46.4]}
23... Nxh4 {[%clk 0:14:49.5]} 24. g3 {[%clk 0:13:50.1]} 24... Nf3+ {[%clk
0:14:51.3]} 25. Nxf3 {[%clk 0:13:53.1]} 25... Bxf3 {[%clk 0:14:55.8]} 26. Bd7
{[%clk 0:13:45.4]} 26... Rc2 {[%clk 0:14:53.8]} 27. Rab1 {[%clk 0:13:18]} 27...
Bxg3 {[%clk 0:14:54.5]} 28. fxg3 {[%clk 0:13:07.3]} 28... Rg2+ {[%clk
0:14:57.9]} 29. Kh1 {[%clk 0:13:10.5]} 29... Rxb2+ {[%clk 0:14:59.6]} 30. Kg1
{[%clk 0:13:13.5]} 30... Rg2+ {[%clk 0:15:03.4]} 31. Kh1 {[%clk 0:13:17.4]}
31... Rd2+ {[%clk 0:14:54.4]} 32. Kg1 {[%clk 0:13:20.8]} 32... Rg2+ {[%clk
0:14:29.7]} 33. Kh1 {[%clk 0:13:23.7]} 33... Rd2+ {[%clk 0:14:18.5]} 34. Kg1
{[%clk 0:13:26.4]} 34... Rxd7 {[%clk 0:14:22.6]} 35. Rxf3 {[%clk 0:13:30.1]}
35... Rfd8 {[%clk 0:14:25.6]} 36. Rbf1 {[%clk 0:13:29.8]} 36... f6 {[%clk
0:14:26.6]} 37. g4 {[%clk 0:13:33.4]} 37... Rd4 {[%clk 0:14:30]} 38. Rg3 {[%clk
0:13:34.3]} 38... Rxb4 {[%clk 0:14:33.7]} 39. a3 {[%clk 0:13:37.7]} 39... Ra4
{[%clk 0:14:36.9]} 40. Ra1 {[%clk 0:13:36.3]} 40... Rd5 {[%clk 0:14:35.9]} 41.
Ra2 {[%clk 0:13:26.3]} 41... Kf7 {[%clk 0:14:34.5]} 42. Kh2 {[%clk 0:13:23]}
42... Rg5 {[%clk 0:14:32.5]} 43. Kh3 {[%clk 0:13:23.3]} 43... a5 {[%clk
0:14:31.2]} 44. Kh4 {[%clk 0:13:22.8]} 44... h5 {[%clk 0:14:13.3]} 45. Rag2
{[%clk 0:13:22.4]} 45... hxg4 {[%clk 0:14:09.7]} 46. Rxg4 {[%clk 0:13:18.2]}
46... Rgxg4+ {[%clk 0:14:10.9]} 47. Rxg4 {[%clk 0:13:21.6]} 47... Rxa3 {[%clk
0:14:15.4]} 48. Rc4 {[%clk 0:13:23]} 48... a4 {[%clk 0:14:14]} 49. Rc7+ {[%clk
0:13:26.2]} 49... Kg6 {[%clk 0:14:18.3]} 50. Kg4 {[%clk 0:13:28.7]} 50... Ra1
{[%clk 0:14:20.9]} 51. Rc5 {[%clk 0:13:31.3]} 51... a3 {[%clk 0:14:23.9]} 52.
Ra5 {[%clk 0:13:35.2]} 52... a2 {[%clk 0:14:28.3]} 53. Ra3 {[%clk 0:13:38.6]}
53... Rg1+ {[%clk 0:14:32.4]} 54. Kf3 {[%clk 0:13:41.9]} 54... a1=Q {[%clk
0:14:37.3]} 55. Rxa1 {[%clk 0:13:45.7]} 55... Rxa1 {[%clk 0:14:42.2]} 0-1

[Event "Live Chess"]
[Site "Chess.com"]
[Date "2023.09.16"]
[Round "-"]
[White "Yurxx21"]
[Black "abcgames2904"]
[Result "1-0"]
[WhiteElo "1480"]
[BlackElo "1199"]
[TimeControl "900+5"]
[EndTime "16:44:12 PDT"]
[Termination "Yurxx21 venceu por xeque-mate"]

1. e4 {[%clk 0:14:59.2]} 1... e5 {[%clk 0:15:03.3]} 2. Nf3 {[%clk 0:15:03.3]}
2... Nc6 {[%clk 0:15:07.9]} 3. Bc4 {[%clk 0:15:05]} 3... Nf6 {[%clk 0:15:12.8]}
4. Ng5 {[%clk 0:15:02.8]} 4... d5 {[%clk 0:15:13.7]} 5. exd5 {[%clk 0:15:05.3]}
5... Nxd5 {[%clk 0:15:18.1]} 6. Nxf7 {[%clk 0:15:04.6]} 6... Kxf7 {[%clk
0:15:20.9]} 7. Qf3+ {[%clk 0:15:08.8]} 7... Ke6 {[%clk 0:15:23.6]} 8. Nc3 {[%clk
0:15:05.7]} 8... Ne7 {[%clk 0:15:26.1]} 9. d4 {[%clk 0:14:05.1]} 9... b5 {[%clk
0:15:16.7]} 10. Bxd5+ {[%clk 0:13:57]} 10... Nxd5 {[%clk 0:15:19.5]} 11. Bg5
{[%clk 0:13:30.1]} 11... Be7 {[%clk 0:15:18]} 12. Bxe7 {[%clk 0:13:22.7]} 12...
Qxe7 {[%clk 0:15:22]} 13. Qxd5+ {[%clk 0:13:18.2]} 13... Kf5 {[%clk 0:15:25]}
14. Qe4+ {[%clk 0:13:08.6]} 14... Ke6 {[%clk 0:15:26.9]} 15. Qxa8 {[%clk
0:13:06.7]} 15... exd4 {[%clk 0:15:25.4]} 16. O-O-O {[%clk 0:12:55.5]} 16...
dxc3 {[%clk 0:15:29]} 17. Rhe1+ {[%clk 0:12:59.4]} 17... Kf7 {[%clk 0:15:31]}
18. Rxe7+ {[%clk 0:12:59.9]} 18... Kxe7 {[%clk 0:15:35.9]} 19. Re1+ {[%clk
0:13:01.1]} 19... Be6 {[%clk 0:15:39.2]} 20. Rxe6+ {[%clk 0:13:01.7]} 20... Kxe6
{[%clk 0:15:42.8]} 21. Qxh8 {[%clk 0:13:06.2]} 21... cxb2+ {[%clk 0:15:47.3]}
22. Kxb2 {[%clk 0:13:07.8]} 22... a5 {[%clk 0:15:42.2]} 23. Qxg7 {[%clk
0:13:08]} 23... a4 {[%clk 0:15:47.1]} 24. Qxh7 {[%clk 0:13:11.3]} 24... Kd5
{[%clk 0:15:52]} 25. Qxc7 {[%clk 0:13:15.5]} 25... b4 {[%clk 0:15:54.2]} 26. c4+
{[%clk 0:13:16]} 26... Kd4 {[%clk 0:15:59.1]} 27. c5 {[%clk 0:13:15.9]} 27...
a3+ {[%clk 0:16:02.2]} 28. Kb3 {[%clk 0:13:19.2]} 28... Kd3 {[%clk 0:16:04.6]}
29. c6 {[%clk 0:13:22.4]} 29... Ke2 {[%clk 0:16:08.1]} 30. Qf4 {[%clk
0:13:19.4]} 30... Kf1 {[%clk 0:16:13]} 31. Qf3 {[%clk 0:13:07]} 31... Ke1 {[%clk
0:16:13.9]} 32. c7 {[%clk 0:13:05.7]} 32... Kf1 {[%clk 0:16:17.1]} 33. c8=Q
{[%clk 0:12:59.9]} 33... Kg1 {[%clk 0:16:20.8]} 34. Qc1+ {[%clk 0:12:49.5]}
34... Kxh2 {[%clk 0:16:23.5]} 35. Qg3# {[%clk 0:12:50]} 1-0

[Event "Live Chess"]
[Site "Chess.com"]
[Date "2023.09.16"]
[Round "-"]
[White "Frogstetic"]
[Black "Mell46"]
[Result "0-1"]
[WhiteElo "2000"]
[BlackElo "1434"]
[TimeControl "900+5"]
[EndTime "16:44:32 PDT"]
[Termination "Mell46 venceu por desistência"]

1. e4 {[%clk 0:15:03.1]} 1... e5 {[%clk 0:15:03.5]} 2. Nf3 {[%clk 0:15:06.2]}
2... Nc6 {[%clk 0:15:06.8]} 3. Bc4 {[%clk 0:15:10]} 3... Bc5 {[%clk 0:15:09.7]}
4. c3 {[%clk 0:15:14.6]} 4... Nf6 {[%clk 0:15:08.3]} 5. d4 {[%clk 0:15:18.2]}
5... exd4 {[%clk 0:15:10.6]} 6. cxd4 {[%clk 0:15:23.1]} 6... Bb4+ {[%clk
0:15:13.1]} 7. Bd2 {[%clk 0:15:27.2]} 7... Bxd2+ {[%clk 0:14:33.1]} 8. Nbxd2
{[%clk 0:15:32.1]} 8... O-O {[%clk 0:14:23.9]} 9. d5 {[%clk 0:15:31.8]} 9... Ne7
{[%clk 0:13:32.7]} 10. O-O {[%clk 0:15:18]} 10... d6 {[%clk 0:13:32]} 11. h3
{[%clk 0:15:21.8]} 11... Ng6 {[%clk 0:13:28.2]} 12. Re1 {[%clk 0:14:56.5]} 12...
Re8 {[%clk 0:13:29.1]} 13. Qb3 {[%clk 0:14:53.4]} 13... h6 {[%clk 0:13:27.9]}
14. Rac1 {[%clk 0:14:23.3]} 14... Nd7 {[%clk 0:13:14.2]} 15. Qc2 {[%clk
0:14:00]} 15... Nde5 {[%clk 0:13:02.4]} 16. Nxe5 {[%clk 0:13:40.6]} 16... Nxe5
{[%clk 0:13:04.8]} 17. Be2 {[%clk 0:13:45.1]} 17... Qg5 {[%clk 0:12:35.1]} 18.
Kh1 {[%clk 0:13:46.4]} 18... Qf4 {[%clk 0:12:06.3]} 19. Rf1 {[%clk 0:12:54.6]}
19... Qh4 {[%clk 0:09:43.9]} 20. Kh2 {[%clk 0:12:48.2]} 20... Bg4 {[%clk
0:09:11.4]} 21. Bxg4 {[%clk 0:11:47.7]} 21... Nxg4+ {[%clk 0:09:13]} 22. Kg1
{[%clk 0:11:51.9]} 22... Nf6 {[%clk 0:08:43.3]} 23. Qxc7 {[%clk 0:11:31.3]}
23... Nxe4 {[%clk 0:08:29.9]} 24. Nxe4 {[%clk 0:11:36.2]} 24... Qxe4 {[%clk
0:08:18.9]} 25. Qc4 {[%clk 0:11:16.1]} 25... Qxc4 {[%clk 0:07:15.9]} 26. Rxc4
{[%clk 0:11:21]} 26... Re7 {[%clk 0:07:19.4]} 27. Rfc1 {[%clk 0:11:08.3]} 27...
Kh7 {[%clk 0:07:23.6]} 28. Rc7 {[%clk 0:11:10.5]} 28... Rae8 {[%clk 0:07:20.1]}
29. b4 {[%clk 0:10:59.3]} 29... Kg6 {[%clk 0:07:22.5]} 30. g3 {[%clk 0:10:42.9]}
30... Kf6 {[%clk 0:07:14.8]} 31. a4 {[%clk 0:10:43]} 31... Re1+ {[%clk
0:06:44.2]} 32. Rxe1 {[%clk 0:10:42.6]} 32... Rxe1+ {[%clk 0:06:47]} 33. Kg2
{[%clk 0:10:47.2]} 33... Re7 {[%clk 0:06:48.1]} 34. Rxe7 {[%clk 0:10:50.2]}
34... Kxe7 {[%clk 0:06:51.9]} 35. Kf3 {[%clk 0:10:53.7]} 35... Kf6 {[%clk
0:06:56.4]} 36. Kf4 {[%clk 0:10:53.8]} 36... g6 {[%clk 0:06:32.2]} 37. f3 {[%clk
0:10:47.6]} 37... g5+ {[%clk 0:06:28.1]} 38. Ke4 {[%clk 0:10:50]} 38... h5
{[%clk 0:06:15]} 39. g4 {[%clk 0:09:39.7]} 39... h4 {[%clk 0:05:40.6]} 40. f4
{[%clk 0:09:42.8]} 40... gxf4 {[%clk 0:05:39.3]} 41. Kxf4 {[%clk 0:09:47.7]}
41... Kg6 {[%clk 0:05:42.8]} 42. g5 {[%clk 0:09:44.7]} 42... f5 {[%clk
0:05:44.7]} 43. gxf6 {[%clk 0:09:37.9]} 43... Kxf6 {[%clk 0:05:46.3]} 44. Kg4
{[%clk 0:09:39.2]} 44... Ke5 {[%clk 0:05:49.6]} 45. Kxh4 {[%clk 0:09:43.9]}
45... Kxd5 {[%clk 0:05:52.5]} 46. Kg5 {[%clk 0:09:48.2]} 46... Ke6 {[%clk
0:05:13.7]} 47. Kg6 {[%clk 0:09:45.9]} 47... d5 {[%clk 0:05:16.7]} 48. h4 {[%clk
0:09:49.6]} 48... d4 {[%clk 0:05:20.6]} 49. h5 {[%clk 0:09:54.1]} 49... d3
{[%clk 0:05:21.2]} 50. h6 {[%clk 0:09:57.8]} 50... d2 {[%clk 0:05:23.4]} 51. h7
{[%clk 0:10:01.9]} 51... d1=Q {[%clk 0:05:25.6]} 52. h8=Q {[%clk 0:10:05.7]}
52... Qg4+ {[%clk 0:05:17.1]} 53. Kh7 {[%clk 0:10:08.6]} 53... Qh4+ {[%clk
0:04:47.7]} 54. Kg7 {[%clk 0:10:10.3]} 54... Qxh8+ {[%clk 0:04:38.8]} 55. Kxh8
{[%clk 0:10:15.2]} 55... Kd5 {[%clk 0:04:42.3]} 56. Kg7 {[%clk 0:09:45.9]} 56...
Kc4 {[%clk 0:04:45]} 57. Kf7 {[%clk 0:09:49.2]} 57... Kxb4 {[%clk 0:04:48.5]}
58. Ke7 {[%clk 0:09:53.6]} 58... Kxa4 {[%clk 0:04:52.6]} 59. Kd6 {[%clk
0:09:55.5]} 59... Kb4 {[%clk 0:04:52.1]} 60. Kc7 {[%clk 0:09:59.3]} 60... b5
{[%clk 0:04:55.2]} 61. Kb7 {[%clk 0:10:03.9]} 61... a5 {[%clk 0:04:58.9]} 62.
Ka7 {[%clk 0:10:08.6]} 62... a4 {[%clk 0:05:03.1]} 63. Kb6 {[%clk 0:10:12.4]}
63... a3 {[%clk 0:05:07.6]} 0-1